fUST/lending_fUST_20240810
["ID","MTS","AMOUNT","RATE_DAILY","PERIOD"]
[334566129,1723230641988,-749.683994,0.00020512,2]
[334566130,1723230641998,-749.683994,0.00020512,2]
[334566131,1723230642007,-496.072214,0.00020512,2]
[334566132,1723230642017,-496.072214,0.00020512,2]
[334566133,1723230642026,-153.0,0.00020521,2]
[334566134,1723230642036,-153.5978301,0.00020521,2]
[334566135,1723230642045,-153.0,0.00020521,2]
[334566136,1723230642056,-153.0,0.00020521,2]
[334566137,1723230642065,-153.0,0.00020521,2]
[334566138,1723230642074,-153.0,0.00020521,2]
[334566139,1723230642085,-153.0,0.00020521,2]
[334566140,1723230642096,-267.8162636,0.00020521,2]
[334566141,1723230642106,-267.8162636,0.00020521,2]
[334566142,1723230642118,-267.8162636,0.00020521,2]
[334566143,1723230642128,-267.8162636,0.00020521,2]
[334566144,1723230642139,-267.8162636,0.00020521,2]
[334566145,1723230642155,-267.8162636,0.00020521,2]
[334566146,1723230642165,-267.8162636,0.00020521,2]
[334566147,1723230642174,-267.8162636,0.00020521,2]
[334566148,1723230642183,-267.8162636,0.00020521,2]
[334566149,1723230642192,-267.8162636,0.00020521,2]
[334566150,1723230642201,-267.8162636,0.00020521,2]
[334566151,1723230642210,-267.8162636,0.00020521,2]
[334566152,1723230642220,-5112.68102993,0.00020535,2]
[334566153,1723230642229,-153.0,0.00020548,2]
[334566154,1723230642238,-153.0,0.00020548,2]
[334566155,1723230642247,-153.0,0.00020548,2]
[334566156,1723230642257,-153.0,0.00020548,2]
[334566157,1723230642266,-153.0,0.00020548,2]
[334566158,1723230642276,-153.0,0.00020548,2]
[334566159,1723230642285,-153.0,0.00020548,2]
[334566160,1723230642294,-153.0,0.00020548,2]
[334566161,1723230642304,-151.0,0.00020553,2]
[334566162,1723230642314,-151.0,0.00020553,2]
[334566163,1723230642323,-151.0,0.00020553,2]
[334566164,1723230642332,-266.917895,0.00020553,2]
[334566165,1723230642342,-5112.68102995,0.00020628,2]
[334566166,1723230642352,-175.323779,0.00020684,2]
[334566167,1723230642361,-175.323779,0.00020684,2]
[334566168,1723230642371,-262.770266,0.00020684,2]
[334566169,1723230642380,-262.770266,0.00020684,2]
[334566170,1723230642389,-378.628302,0.00020684,2]
[334566171,1723230642399,-378.628302,0.00020684,2]
[334566172,1723230642411,-749.683994,0.00020684,2]
[334566173,1723230642421,-749.683994,0.00020684,2]
[334566174,1723230642430,-496.072214,0.00020684,2]
[334566175,1723230642440,-496.072214,0.00020684,2]
[334566176,1723230642449,-153.0,0.00020685,2]
[334566177,1723230642459,-160.9606,0.00020706,2]
[334566178,1723230642470,-160.9606,0.00020706,2]
[334566179,1723230642480,-151.0,0.00020706,2]
[334566180,1723230642489,-151.0,0.00020706,2]
[334566181,1723230642498,-176.707944,0.00020706,2]
[334566182,1723230642507,-176.707944,0.00020706,2]
[334566183,1723230642517,-491.852343,0.00020706,2]
[334566184,1723230642526,-491.852343,0.00020706,2]
[334566185,1723230642537,-151.0,0.00020706,2]
[334566186,1723230642546,-151.0,0.00020706,2]
[334566187,1723230642555,-1336.20225,0.00020706,2]
[334566188,1723230642565,-1336.20225,0.00020706,2]
[334566189,1723230642575,-277.670833,0.00020706,2]
[334566190,1723230642584,-277.670833,0.00020706,2]
[334566191,1723230642597,-350.636492,0.00020706,2]
[334566192,1723230642606,-350.636492,0.00020706,2]
[334566193,1723230642615,-378.628302,0.00020711,2]
[334566194,1723230642624,-378.628302,0.00020711,2]
[334566195,1723230642635,-749.683994,0.00020711,2]
[334566196,1723230642644,-749.683994,0.00020711,2]
[334566197,1723230642655,-496.072214,0.00020711,2]
[334566198,1723230642668,-245.30753034,0.00020711,2]
[334566230,1723230646601,-414.4501268,0.00020078,2]
[334566231,1723230646611,-505.7554494,0.00020078,2]
[334566232,1723230646622,-267.8162636,0.00020521,2]
[334566233,1723230646633,-267.8162636,0.00020521,2]
[334566234,1723230646643,-250.76468366,0.00020711,2]
[334566235,1723230646654,-1000.0,0.00020727,2]
[334566236,1723230646664,-1000.0,0.0002074,2]
[334566237,1723230646675,-5255.90236632,0.000208,2]
[334566238,1723230646684,-306.0,0.00020822,2]
[334566239,1723230646693,-414.4501268,0.00020822,2]
[334566240,1723230646703,-1000.0,0.00020829,2]
[334566241,1723230646712,-200.0,0.00020842,2]
[334566242,1723230646722,-200.0,0.00020844,2]
[334566243,1723230646731,-1000.0,0.00020881,2]
[334566244,1723230646740,-984.83,0.0002089,3]
[334566245,1723230646749,-492.42,0.0002089,3]
[334566246,1723230646760,-246.21,0.0002089,3]
[334566247,1723230646770,-738.64,0.0002089,3]
[334566248,1723230646779,-151.0,0.000209,2]
[334566249,1723230646789,-151.0,0.000209,2]
[334566250,1723230646798,-151.0,0.000209,2]
[334566251,1723230646808,-151.0,0.000209,2]
[334566253,1723230646817,-151.0,0.000209,2]
[334566255,1723230646826,-151.0,0.000209,2]
[334566256,1723230646837,-151.0,0.000209,2]
[334566257,1723230646846,-2000.0,0.000209,2]
[334566258,1723230646856,-160.9606,0.000209,2]
[334566259,1723230646865,-160.9606,0.000209,2]
[334566260,1723230646875,-151.0,0.000209,2]
[334566261,1723230646883,-151.0,0.000209,2]
[334566262,1723230646893,-176.707944,0.000209,2]
[334566263,1723230646905,-176.707944,0.000209,2]
[334566264,1723230646915,-491.852343,0.000209,2]
[334566265,1723230646924,-491.852343,0.000209,2]
[334566266,1723230646934,-151.0,0.000209,2]
[334566267,1723230646944,-151.0,0.000209,2]
[334566268,1723230646954,-1336.20225,0.000209,2]
[334566269,1723230646964,-1336.20225,0.000209,2]
[334566270,1723230646973,-175.323779,0.000209,2]
[334566271,1723230646983,-175.323779,0.000209,2]
[334566272,1723230646993,-175.323779,0.000209,2]
[334566273,1723230647002,-175.323779,0.000209,2]
[334566274,1723230647012,-262.770266,0.000209,2]
[334566275,1723230647022,-262.770266,0.000209,2]
[334566276,1723230647031,-262.770266,0.000209,2]
[334566277,1723230647040,-262.770266,0.000209,2]
[334566278,1723230647049,-277.670833,0.000209,2]
[334566279,1723230647059,-277.670833,0.000209,2]
[334566280,1723230647069,-277.670833,0.000209,2]
[334566281,1723230647079,-277.670833,0.000209,2]
[334566282,1723230647090,-350.636492,0.000209,2]
[334566283,1723230647100,-350.636492,0.000209,2]
[334566284,1723230647111,-350.636492,0.000209,2]
[334566285,1723230647121,-350.636492,0.000209,2]
[334566286,1723230647133,-378.628302,0.000209,2]
[334566287,1723230647143,-378.628302,0.000209,2]
[334566288,1723230647154,-378.628302,0.000209,2]
[334566289,1723230647164,-378.628302,0.000209,2]
[334566290,1723230647174,-749.683994,0.000209,2]
[334566291,1723230647186,-362.64390565,0.000209,2]
[334566315,1723231700984,3151.22341825,0.000125,2]
[334566390,1723231840607,-309.51159033,0.00019547,2]
[334566391,1723231840617,-7336.5155783,0.00019562,2]
[334566392,1723231840627,-4214.06325236,0.00019993,2]
[334566393,1723231840638,-174.56235819,0.00019999,2]
[334566394,1723231840648,-8353.3811823,0.0002,2]
[334566395,1723231840659,-153.0,0.000202,2]
[334566396,1723231840670,-153.0,0.000202,2]
[334566397,1723231840679,-267.8162636,0.000202,2]
[334566398,1723231840689,-4214.06325236,0.00020237,2]
[334566399,1723231840698,-150.0,0.00020249,2]
[334566400,1723231840708,-295.52972968,0.00020286,2]
[334566401,1723231840719,-267.8162636,0.000203,2]
[334566402,1723231840730,-153.0,0.000203,2]
[334566403,1723231840741,-153.0,0.000203,2]
[334566404,1723231840750,-267.8162636,0.000203,2]
[334566405,1723231840762,-306.0,0.000203,2]
[334566406,1723231840772,-153.0,0.000203,2]
[334566407,1723231840782,-1640.42447414,0.000203,2]
[334566408,1723231840791,-4214.06325236,0.00020339,2]
[334566409,1723231840801,-294.5666805,0.000204,2]
[334566410,1723231840810,-153.0,0.000204,2]
[334566411,1723231840820,-349.90524,0.000204,2]
[334566412,1723231840829,-153.0,0.000204,2]
[334566413,1723231840839,-306.0,0.000204,2]
[334566414,1723231840849,-153.0,0.000204,2]
[334566415,1723231840859,-267.8162636,0.000204,2]
[334566417,1723231840870,-416.3721084,0.000204,2]
[334566419,1723231840880,-620.00147136,0.00020532,2]
[334566420,1723231840890,-207.2250634,0.000207,2]
[334566422,1723231840899,-1000.0,0.00020773,2]
[334566424,1723231840909,-4214.06325238,0.00020774,2]
[334566426,1723231840918,-1000.0,0.00020791,2]
[334566428,1723231840928,-1000.0,0.00020803,2]
[334566430,1723231840937,-5423.34538521,0.00020847,2]
[334566432,1723231840952,-1000.0,0.00020891,2]
[334566434,1723231840964,-1626.92608275,0.000209,2]
[334566436,1723231840974,-10493.07332189,0.000209,2]
[334566438,1723231840983,-4184.36415148,0.000209,2]
[334566439,1723231840993,-153.0,0.000209,2]
[334566441,1723231841002,-414.3967899,0.000209,2]
[334566443,1723231841012,-151.0,0.000209,2]
[334566445,1723231841025,-151.0,0.000209,2]
[334566447,1723231841035,-151.0,0.000209,2]
[334566449,1723231841045,-151.0,0.000209,2]
[334566450,1723231841055,-598.8643,0.000209,2]
[334566452,1723231841065,-598.8643,0.000209,2]
[334566454,1723231841075,-151.0,0.000209,2]
[334566456,1723231841084,-151.0,0.000209,2]
[334566458,1723231841094,-210.216213,0.000209,2]
[334566460,1723231841105,-210.216213,0.000209,2]
[334566462,1723231841115,-694.067599,0.000209,2]
[334566478,1723231841276,-694.067599,0.000209,2]
[334566479,1723231841287,-602.0,0.000209,2]
[334566480,1723231841297,-2000.0,0.000209,2]
[334566481,1723231841307,-159.037149,0.000209,2]
[334566482,1723231841316,-159.037149,0.000209,2]
[334566483,1723231841326,-159.037149,0.000209,2]
[334566484,1723231841336,-159.037149,0.000209,2]
[334566485,1723231841346,-132.5277043,0.000209,2]
[334566500,1723231843819,-11.83061319,0.000209,2]
[334566529,1723231846632,-6.64168251,0.000209,2]
[334566530,1723231846645,-151.0,0.000209,2]
[334566531,1723231846655,-151.0,0.000209,2]
[334566532,1723231846666,-151.0,0.000209,2]
[334566533,1723231846676,-184.65884676,0.000209,2]
[334566534,1723231846689,-37.47781924,0.000209,2]
[334566535,1723231846698,-151.0,0.000209,2]
[334566536,1723231846708,-442.667109,0.000209,2]
[334566537,1723231846718,-222.136666,0.000209,2]
[334566538,1723231846729,-442.667109,0.000209,2]
[334566540,1723231846739,-442.667109,0.000209,2]
[334566541,1723231846750,-222.136666,0.000209,2]
[334566542,1723231846761,-442.667109,0.000209,2]
[334566543,1723231846770,-222.136666,0.000209,2]
[334566544,1723231846780,-151.0,0.000209,2]
[334566545,1723231846790,-151.0,0.000209,2]
[334566546,1723231846800,-151.0,0.000209,2]
[334566547,1723231846811,-151.0,0.000209,2]
[334566548,1723231846820,-151.0,0.000209,2]
[334566549,1723231846831,-151.0,0.000209,2]
[334566550,1723231846842,-151.0,0.000209,2]
[334566551,1723231846852,-151.0,0.000209,2]
[334566552,1723231846863,-163.65451499,0.000209,2]
[334566553,1723231846873,-151.0,0.000209,2]
[334566554,1723231846883,-151.0,0.000209,2]
[334566555,1723231846893,-151.0,0.000209,2]
[334566556,1723231846902,-151.0,0.000209,2]
[334566557,1723231846912,-1202.582025,0.000209,2]
[334566558,1723231846921,-889.37123247,0.000209,2]
[334566559,1723231872576,2277.87309117,0.00015151,3]
[334566564,1723232850607,313.20952962,0.00015151,2]
[334566565,1723232961142,-171.12101305,0.00016309,2]
[334566646,1723233040894,-1364.15976013,0.00018,2]
[334566647,1723233040904,-6450.0417795,0.00019123,2]
[334566649,1723233040914,-810.1149959,0.00019155,2]
[334566651,1723233040924,-4214.06325236,0.00019804,2]
[334566653,1723233040933,-4184.36415148,0.0002,2]
[334566655,1723233040943,-10493.07332189,0.0002,2]
[334566657,1723233040953,-1626.92608275,0.0002,2]
[334566659,1723233040962,-151.56653755,0.0002,2]
[334566661,1723233040971,-150.0,0.0002019,2]
[334566663,1723233040980,-4214.06325236,0.00020254,2]
[334566665,1723233040989,-153.0,0.00020274,2]
[334566667,1723233040999,-153.0,0.00020274,2]
[334566669,1723233041008,-154.77557542,0.0002028,2]
[334566671,1723233041017,-295.52972968,0.00020366,2]
[334566673,1723233041026,-4214.06325236,0.00020437,2]
[334566675,1723233041035,-153.0,0.00020548,2]
[334566677,1723233041044,-153.0,0.00020548,2]
[334566679,1723233041054,-153.0,0.00020548,2]
[334566681,1723233041063,-153.0,0.00020548,2]
[334566683,1723233041072,-153.0,0.00020548,2]
[334566685,1723233041081,-153.0,0.00020548,2]
[334566687,1723233041090,-153.0,0.00020548,2]
[334566689,1723233041099,-153.0,0.00020548,2]
[334566691,1723233041108,-306.0,0.00020548,2]
[334566693,1723233041117,-267.8162636,0.00020548,2]
[334566695,1723233041126,-153.0,0.00020548,2]
[334566697,1723233041135,-267.8162636,0.00020548,2]
[334566699,1723233041144,-535.6325272,0.00020548,2]
[334566700,1723233041153,-535.6325272,0.00020548,2]
[334566702,1723233041162,-4214.06325238,0.00020625,2]
[334566704,1723233041171,-1640.42447414,0.00020709,2]
[334566706,1723233041180,-1000.0,0.00020728,2]
[334566708,1723233041190,-1000.0,0.00020794,2]
[334566710,1723233041199,-1000.0,0.00020794,2]
[334566712,1723233041209,-300.0,0.00020809,2]
[334566714,1723233041221,-153.0,0.00020822,2]
[334566716,1723233041234,-153.0,0.00020822,2]
[334566718,1723233041243,-153.0,0.00020822,2]
[334566719,1723233041252,-153.0,0.00020822,2]
[334566721,1723233041262,-153.5978301,0.00020822,2]
[334566723,1723233041271,-153.0,0.00020822,2]
[334566725,1723233041281,-525.325606,0.00020822,2]
[334566727,1723233041292,-209.147045,0.00020822,2]
[334566728,1723233041301,-1000.0,0.00020827,2]
[334566730,1723233041310,-5423.34538521,0.00020833,2]
[334566732,1723233041320,-1000.0,0.00020837,2]
[334566734,1723233041330,-694.067599,0.00020837,2]
[334566736,1723233041339,-151.0,0.00020837,2]
[334566737,1723233041349,-151.0,0.00020837,2]
[334566739,1723233041358,-151.0,0.00020837,2]
[334566741,1723233041369,-266.917895,0.00020837,2]
[334566743,1723233041379,-151.0,0.00020837,2]
[334566744,1723233041388,-151.0,0.00020837,2]
[334566746,1723233041398,-151.0,0.00020837,2]
[334566748,1723233041408,-210.216213,0.00020837,2]
[334566749,1723233041417,-210.216213,0.00020837,2]
[334566751,1723233041427,-280.509193,0.00020837,2]
[334566752,1723233041435,-280.509193,0.00020837,2]
[334566753,1723233041445,-151.0,0.00020837,2]
[334566754,1723233041455,-151.0,0.00020837,2]
[334566755,1723233041468,-1097.984362,0.00020837,2]
[334566756,1723233041477,-1097.984362,0.00020837,2]
[334566757,1723233041486,-159.037149,0.00020837,2]
[334566758,1723233041495,-159.037149,0.00020837,2]
[334566759,1723233041504,-29.54243355,0.00020837,2]
[334566866,1723233656018,167.3,0.00014247,2]
[334567054,1723234239996,-5752.333821,0.00019561,2]
[334567056,1723234240006,-166.398436,0.00019701,2]
[334567058,1723234240017,-150.0,0.00020081,2]
[334567061,1723234240028,-4214.0632523,0.00020221,2]
[334567063,1723234240038,-150.0,0.00020258,2]
[334567065,1723234240047,-540.897,0.00020258,2]
[334567067,1723234240057,-1412.0,0.00020258,2]
[334567069,1723234240067,-153.0,0.000203,2]
[334567071,1723234240079,-207.2250634,0.000203,2]
[334567073,1723234240088,-535.6325272,0.000203,2]
[334567075,1723234240097,-294.5666805,0.000203,2]
[334567077,1723234240107,-153.0,0.000203,2]
[334567079,1723234240117,-153.0,0.000203,2]
[334567081,1723234240128,-207.2250634,0.000203,2]
[334567083,1723234240139,-153.0,0.000203,2]
[334567085,1723234240148,-267.8162636,0.000203,2]
[334567087,1723234240158,-306.0,0.000203,2]
[334567089,1723234240168,-294.5666805,0.000203,2]
[334567091,1723234240178,-295.52972968,0.00020357,2]
[334567093,1723234240187,-207.2250634,0.000204,2]
[334567096,1723234240197,-535.6325272,0.000204,2]
[334567098,1723234240207,-245.258309,0.000204,2]
[334567100,1723234240217,-535.6325272,0.000204,2]
[334567102,1723234240226,-153.0,0.000204,2]
[334567104,1723234240236,-153.0,0.000204,2]
[334567106,1723234240247,-207.2250634,0.000204,2]
[334567108,1723234240257,-294.5666805,0.000204,2]
[334567110,1723234240266,-267.8162636,0.000204,2]
[334567112,1723234240275,-153.0,0.000204,2]
[334567114,1723234240285,-207.2250634,0.000204,2]
[334567116,1723234240295,-267.8162636,0.000204,2]
[334567118,1723234240305,-153.0,0.000204,2]
[334567120,1723234240315,-294.5666805,0.000204,2]
[334567122,1723234240325,-267.8162636,0.000204,2]
[334567124,1723234240334,-207.2250634,0.000204,2]
[334567126,1723234240344,-153.0,0.000204,2]
[334567128,1723234240353,-294.5666805,0.000204,2]
[334567130,1723234240363,-153.0,0.000204,2]
[334567132,1723234240372,-153.0,0.000204,2]
[334567134,1723234240382,-267.8162636,0.000204,2]
[334567136,1723234240392,-207.2250634,0.000204,2]
[334567138,1723234240401,-153.0,0.000204,2]
[334567141,1723234240411,-153.0,0.000204,2]
[334567143,1723234240420,-153.0,0.000204,2]
[334567145,1723234240431,-267.8162636,0.000204,2]
[334567147,1723234240440,-294.5666805,0.000204,2]
[334567149,1723234240450,-209.147045,0.000204,2]
[334567151,1723234240460,-4214.0632523,0.00020472,2]
[334567153,1723234240469,-620.00147136,0.00020481,2]
[334567155,1723234240479,-589.133361,0.000205,2]
[334567157,1723234240488,-153.0,0.000205,2]
[334567159,1723234240497,-153.2214191,0.000205,2]
[334567161,1723234240508,-349.90524,0.00020548,2]
[334567163,1723234240518,-153.0,0.00020548,2]
[334567165,1723234240528,-4214.0632525,0.00020635,2]
[334567167,1723234240537,-1000.0,0.00020715,2]
[334567169,1723234240547,-1681.2883922,0.00020722,2]
[334567171,1723234240557,-1000.0,0.00020776,2]
[334567173,1723234240566,-1000.0,0.0002078,2]
[334567175,1723234240576,-151.56653755,0.00020795,2]
[334567177,1723234240587,-1005.013645,0.000208,2]
[334567179,1723234240595,-28.09251211,0.00020804,2]
[334567361,1723234696376,167.914993,0.00014247,2]
[334567379,1723235215138,-367.6752982,0.00019724,2]
[334567433,1723235432320,-250.24281476,0.00019477,2]
[334567436,1723235432331,-19290.09250235,0.00019724,2]
[334567572,1723235443235,-40.85281091,0.00019477,2]
[334567580,1723235446184,-113.9382212,0.00019477,2]
[334567581,1723235446196,-5232.23219945,0.00019724,2]
[334567582,1723235446206,-1048.30761548,0.00020677,2]
[334567583,1723235446216,-5423.34538521,0.00020739,2]
[334567584,1723235446226,-1158.64274756,0.00020797,12]
[334567585,1723235446235,-267.8162636,0.000208,2]
[334567586,1723235446245,-153.0,0.000208,2]
[334567587,1723235446255,-267.8162636,0.000208,2]
[334567588,1723235446265,-153.0,0.000208,2]
[334567589,1723235446275,-283.2194273,0.000208,2]
[334567590,1723235446285,-153.0,0.000208,2]
[334567591,1723235446294,-525.325606,0.000208,2]
[334567592,1723235446304,-153.0,0.000208,2]
[334567593,1723235446314,-153.0,0.000208,2]
[334567594,1723235446324,-150.072387,0.000208,2]
[334567595,1723235446333,-267.8162636,0.000208,2]
[334567596,1723235446351,-306.0,0.000208,2]
[334567597,1723235446362,-207.2250634,0.000208,2]
[334567598,1723235446374,-153.0,0.000208,2]
[334567599,1723235446383,-153.0,0.000208,2]
[334567600,1723235446392,-153.0,0.000208,2]
[334567601,1723235446402,-207.2250634,0.000208,2]
[334567602,1723235446411,-462.7132363,0.000208,2]
[334567603,1723235446423,-153.0,0.000208,2]
[334567604,1723235446435,-267.8162636,0.000208,2]
[334567605,1723235446445,-153.0,0.000208,2]
[334567606,1723235446455,-381.3568563,0.000208,2]
[334567607,1723235446465,-207.2250634,0.000208,2]
[334567608,1723235446476,-267.8162636,0.000208,2]
[334567609,1723235446486,-207.2250634,0.000208,2]
[334567610,1723235446496,-12007.91468693,0.00020804,11]
[334567611,1723235446506,-271.90748789,0.00020804,2]
[334567612,1723235446517,-4184.36415148,0.00020804,2]
[334567613,1723235446528,-3362.7689705,0.00020804,2]
[334567615,1723235672363,171.015149,0.00014247,2]
[334567625,1723236541251,-150.0,0.00033017,14]
[334567626,1723236541276,-150.0,0.00033017,14]
[334567627,1723236541300,-200.0,0.00033017,14]
[334567628,1723236541324,-244036.59950231,0.00033017,15]
[334567629,1723236541348,-255613.5784346,0.00033017,7]
[334567630,1723236541604,-10648.1377331,0.00033017,30]
[334567631,1723236541635,-2339.49051398,0.00033017,120]
[334567632,1723236541658,-1066.86,0.00033017,120]
[334567633,1723236541682,-228117.0463759,0.00033017,120]
[334567634,1723236541705,-76429.02499632,0.00033017,60]
[334567635,1723236541729,-304.26948443,0.00033017,120]
[334567636,1723236541752,-5000.0,0.00033017,120]
[334567637,1723236541776,-1244.71225337,0.00033017,120]
[334567638,1723236541800,-150.0,0.00033017,120]
[334567639,1723236541823,-160.0167181,0.00033017,120]
[334567640,1723236541847,-203.80920277,0.00033017,5]
[334567641,1723236541873,-14023.71288158,0.00033017,60]
[334567642,1723236541899,-60162.74190354,0.00033017,7]
[334567643,1723236554933,-39819.43291443,0.00033017,7]
[334567644,1723236554957,-4848.26791583,0.00033017,120]
[334567681,1723236632150,-200.0,0.00018904,2]
[334567682,1723236632160,-2763.32263713,0.00019489,2]
[334567686,1723236635378,701.0,0.00025,60]
[334567733,1723236642357,-893.16810097,0.00019489,2]
[334567735,1723236642367,-498.21262543,0.0002,2]
[334567737,1723236642378,-154.77557542,0.0002028,2]
[334567738,1723236642387,-620.00007357,0.0002043,2]
[334567739,1723236642397,-207.2250634,0.000205,2]
[334567740,1723236642407,-153.0,0.000205,2]
[334567741,1723236642422,-153.0,0.000205,2]
[334567743,1723236642432,-267.8162636,0.000205,2]
[334567744,1723236642442,-153.0,0.000205,2]
[334567745,1723236642451,-24.3695387,0.000205,2]
[334567746,1723236642464,-182.8555247,0.000205,2]
[334567747,1723236642474,-153.0,0.000205,2]
[334567748,1723236642483,-306.0,0.000205,2]
[334567749,1723236642495,-306.0,0.000205,2]
[334567750,1723236642507,-267.8162636,0.000205,2]
[334567751,1723236642517,-153.0,0.000205,2]
[334567752,1723236642526,-207.2250634,0.000205,2]
[334567753,1723236642536,-267.8162636,0.000205,2]
[334567754,1723236642546,-153.0,0.000205,2]
[334567755,1723236642556,-207.2250634,0.000205,2]
[334567756,1723236642566,-267.8162636,0.000205,2]
[334567757,1723236642576,-267.8162636,0.000205,2]
[334567758,1723236642586,-207.2250634,0.000205,2]
[334567759,1723236642596,-306.0,0.000205,2]
[334567760,1723236642606,-294.5666805,0.000205,2]
[334567761,1723236642616,-153.0,0.000205,2]
[334567762,1723236642625,-153.0,0.000205,2]
[334567764,1723236642635,-267.8162636,0.000205,2]
[334567765,1723236642644,-413.4591656,0.000205,2]
[334567766,1723236642654,-267.8162636,0.000205,2]
[334567768,1723236642664,-306.0,0.000205,2]
[334567770,1723236642674,-306.0,0.000205,2]
[334567771,1723236642684,-414.3967899,0.000205,2]
[334567773,1723236642694,-153.0,0.000205,2]
[334567774,1723236642704,-267.8162636,0.000205,2]
[334567775,1723236642714,-207.2250634,0.000205,2]
[334567776,1723236642723,-764.5877405,0.00020639,2]
[334567829,1723236646447,-235.4122595,0.00020639,2]
[334567830,1723236646457,-764.5877405,0.00020677,2]
[334567831,1723236716200,181.00859599,0.00025,120]
[334567832,1723236793269,150.5,0.00021449,120]
[334567833,1723236793296,150.5,0.00021449,120]
[334567834,1723236793733,198.24,0.00021439,120]
[334567835,1723236793761,164.32,0.00021439,120]
[334567836,1723236865665,-1000.0,0.00021,21]
[334567837,1723236865694,-1311.0,0.00021648,14]
[334567838,1723236865723,-36149.52282609,0.000217,11]
[334567839,1723236865751,-6003.95734346,0.00021917,11]
[334567840,1723236865817,-300.0,0.000221,10]
[334567841,1723236865885,-7706.28,0.000228,14]
[334567842,1723236865911,-1000.0,0.00023,23]
[334567843,1723236865946,-717.3,0.000231,14]
[334567844,1723236865990,-300.0,0.000236,10]
[334567845,1723236866025,-4351.71715984,0.00024,30]
[334567846,1723236866069,-18139.63677618,0.00024439,10]
[334567847,1723236866102,-7706.28,0.000248,14]
[334567848,1723236866126,-717.3,0.000249,14]
[334567849,1723236866158,-23205.7965051,0.00025,30]
[334567850,1723236866183,-300.0,0.000251,11]
[334567851,1723236866244,-7706.28,0.000264,14]
[334567852,1723236866269,-717.3,0.000265,14]
[334567853,1723236866303,-328.28091,0.000266,12]
[334567854,1723236866340,-5999.64272555,0.0002728,15]
[334567855,1723236866369,-152.77,0.000273,31]
[334567856,1723236866397,-152.77,0.000273,31]
[334567857,1723236866426,-152.77,0.000273,31]
[334567858,1723236866454,-152.77,0.000273,31]
[334567859,1723236866482,-152.77,0.000273,31]
[334567860,1723236866511,-152.77,0.000273,31]
[334567861,1723236866538,-152.77,0.000273,31]
[334567862,1723236866567,-152.77,0.000273,31]
[334567863,1723236866593,-152.77,0.000273,31]
[334567864,1723236866621,-152.77,0.000273,31]
[334567865,1723236866650,-152.77,0.000273,31]
[334567866,1723236866677,-152.77,0.000273,31]
[334567867,1723236866703,-152.77,0.000273,31]
[334567868,1723236866728,-152.77,0.000273,31]
[334567869,1723236866753,-152.77,0.000273,31]
[334567870,1723236866777,-152.77,0.000273,31]
[334567871,1723236866807,-152.77,0.000273,31]
[334567872,1723236866832,-1102.26849248,0.00027397,20]
[334567873,1723236866868,-7706.28,0.000279,14]
[334567874,1723236867073,-5000.0,0.00028,90]
[334567875,1723236867098,-717.3,0.00028,14]
[334567876,1723236867126,-152.77,0.000281,31]
[334567877,1723236867152,-152.77,0.000281,31]